bitfinex/quotes_SOLUSD_20220109
["timestamp","ask_amount","ask_price","bid_price","bid_amount"]
[1641694018949,30.80173828,142.9,142.85,10.4975]
[1641694019147,30.80173828,142.9,142.85,18.8975]
[1641694019346,30.80173828,142.9,142.85,8.4]
[1641694019547,30.80173828,142.9,142.8,8.4]
[1641694019746,28.82056648,142.9,142.81,3.25]
[1641694019946,0.25,142.89,142.82,10.4999]
[1641694020151,0.25,142.89,142.8,8.4]
[1641694020347,10.7499,142.89,142.8,8.4]
[1641694020546,3.25,142.89,142.8,8.4]
[1641694020747,0.26,142.88,142.8,8.4]
[1641694021148,0.26,142.88,142.83,10.4991]
[1641694021347,0.26,142.88,142.8,8.4]
[1641694021348,12.7417718,142.88,142.8,8.4]
[1641694021551,27.71562353,142.87,142.8,8.4]
[1641694021950,0.26,142.86,142.8,8.4]
[1641694022351,0.26,142.86,142.81,3.0]
[1641694022550,27.71562353,142.87,142.81,3.0]
[1641694022753,25.0281718,142.89,142.8,8.4]
[1641694022954,24.7781718,142.89,142.81,0.25]
[1641694023152,1.9811718,142.89,142.81,11.65]
[1641694023553,1.9811718,142.91,142.82,0.26]
[1641694023753,1.9811718,142.91,142.86,10.4969]
[1641694023956,1.9811718,142.91,142.85,8.4]
[1641694024354,0.51,142.9,142.82,8.4]
[1641694024754,40.82431403,142.89,142.82,8.4]
[1641694024955,0.26,142.88,142.79,10.5019]
[1641694025156,5.2411718,142.88,142.79,10.5019]
[1641694025554,5.2411718,142.88,142.78,8.4]
[1641694025955,15.7433718,142.88,142.79,10.502]
[1641694026155,15.7433718,142.88,142.78,8.4]
[1641694027355,1.9811718,142.87,142.78,8.4]
[1641694027759,0.26,142.86,142.78,8.4]
[1641694027960,29.66773011,142.86,142.78,8.4]
[1641694028156,29.91773011,142.86,142.78,8.4]
[1641694028356,40.41963011,142.86,142.78,8.4]
[1641694028556,29.91773011,142.86,142.79,0.51]
[1641694028756,29.91773011,142.86,142.79,0.26]
[1641694029556,40.41933011,142.86,142.8,8.4]
[1641694029757,40.41933011,142.86,142.77,8.4]
[1641694029959,22.8678,142.85,142.77,8.4]
[1641694030158,22.8678,142.85,142.74,1.88525978]
[1641694030159,25.8678,142.85,142.74,1.88525978]
[1641694030356,75.2773,142.84,142.74,1.88525978]
[1641694030560,10.5121,142.81,142.74,1.88525978]
[1641694030757,26.74193195,142.8,142.71,1.88525978]
[1641694030958,30.00193195,142.8,142.71,1.88525978]
[1641694031757,40.51343195,142.8,142.71,1.88525978]
[1641694031958,40.51343195,142.8,142.69,8.4]
[1641694032159,64.76583195,142.8,142.69,8.4]
[1641694032758,64.76583195,142.8,142.67,10.5107]
[1641694032959,64.76583195,142.8,142.68,10.34]
[1641694033360,61.76583195,142.8,142.68,14.11621837]
[1641694033561,88.6085,142.79,142.69,0.26]
[1641694033761,88.6085,142.79,142.7,10.09]
[1641694033762,10.5095,142.79,142.7,10.09]
[1641694033961,10.5095,142.79,142.71,19.93121081]
[1641694034163,1.9811718,142.81,142.72,10.09]
[1641694034593,99.9112,142.82,142.73,0.51]
[1641694034763,99.9112,142.82,142.74,10.09]
[1641694034964,10.5061,142.8,142.74,10.09]
[1641694035563,10.5061,142.8,142.74,20.5968]
[1641694035965,0.26,142.79,142.74,20.5968]
[1641694036466,0.51,142.81,142.74,20.5968]
[1641694036663,10.5068,142.8,142.75,10.5061]
[1641694036864,0.51,142.81,142.72,45.1075]
[1641694037164,0.26,142.79,142.73,3.0]
[1641694037363,76.2871,142.82,142.74,10.09]
[1641694037565,76.2871,142.82,142.74,10.35]
[1641694037766,86.7916,142.82,142.77,10.5041]
[1641694037968,76.2871,142.82,142.76,10.09]
[1641694038368,36.9937718,142.87,142.77,0.25]
[1641694038567,1.9811718,142.87,142.78,10.09]
[1641694038968,1.9811718,142.87,142.79,3.26]
[1641694039169,12.4824718,142.87,142.81,10.5017]
[1641694039368,27.16800413,142.86,142.81,10.5017]
[1641694039867,0.25,142.85,142.81,10.5017]
[1641694040570,10.5015,142.87,142.81,10.5017]
[1641694040770,1.9811718,142.9,142.82,10.09]
[1641694041670,29.57535657,142.89,142.82,10.09]
[1641694041869,0.25,142.88,142.83,10.5001]
[1641694042098,0.25,142.88,142.83,10.09]
[1641694042270,0.25,142.88,142.84,0.26]
[1641694042471,5.93161528,142.96,142.85,10.09]
[1641694042472,2.2311718,142.9,142.85,10.09]
[1641694042770,1.7311718,142.9,142.85,10.09]
[1641694042970,1.7311718,142.9,142.86,3.26]
[1641694043171,28.51779687,142.93,142.86,3.26]
[1641694043370,0.26,142.92,142.86,3.26]
[1641694043574,24.68312991,142.93,142.86,3.26]
[1641694044771,35.18052991,142.93,142.87,10.4974]
[1641694045675,35.18052991,142.93,142.86,3.0]
[1641694045878,35.18052991,142.93,142.87,0.26]
[1641694046374,35.18052991,142.93,142.86,0.26]
[1641694046575,35.18052991,142.93,142.85,10.09]
[1641694046773,0.26,142.92,142.85,10.09]
[1641694046974,10.758,142.92,142.82,45.0842]
[1641694047176,33.9004,142.92,142.83,3.0]
[1641694047576,33.9004,142.92,142.86,10.4977]
[1641694047976,33.9004,142.92,142.83,37.9912]
[1641694048178,33.9004,142.92,142.82,10.09]
[1641694048381,13.7625,142.91,142.78,10.09]
[1641694048781,23.8525,142.91,142.78,20.5939]
[1641694048983,13.35,142.91,142.78,10.09]
[1641694049181,127.71011241,142.9,142.74,10.09]
[1641694049381,201.81751241,142.9,142.74,10.09]
[1641694049613,13.5063,142.89,142.74,10.09]
[1641694049808,3.0,142.89,142.74,10.09]
[1641694050014,3.0,142.89,142.75,10.5061]
[1641694050209,0.26,142.88,142.75,10.7661]
[1641694050610,10.766,142.88,142.75,0.26]
[1641694050809,28.53008556,142.86,142.75,0.26]
[1641694051011,100.496,142.85,142.75,0.26]
[1641694051812,111.003,142.85,142.75,0.26]
[1641694054221,111.003,142.85,142.75,10.7659]
[1641694054622,111.003,142.85,142.75,0.26]
[1641694054815,110.743,142.85,142.76,10.09]
[1641694055015,110.743,142.85,142.77,0.26]
[1641694055218,110.743,142.85,142.77,10.7641]
[1641694055715,110.743,142.85,142.77,0.26]
[1641694055917,0.26,142.84,142.78,10.09]
[1641694056115,102.51906696,142.9,142.79,0.26]
[1641694056116,10.5012,142.87,142.79,0.26]
[1641694056315,27.49376696,142.9,142.8,10.09]
[1641694057015,25.51260308,142.89,142.8,10.09]
[1641694057415,3.26,142.88,142.8,10.09]
[1641694058217,13.764,142.88,142.8,10.09]
[1641694058518,13.764,142.88,142.76,10.09]
[1641694058716,103.5146,142.87,142.76,10.09]
[1641694058918,0.26,142.86,142.76,10.09]
[1641694059116,3.26,142.86,142.76,10.09]
[1641694059321,10.5069,142.85,142.74,10.09]
[1641694059518,25.67441718,142.83,142.71,10.09]
[1641694059718,73.4385,142.82,142.71,10.09]
[1641694059918,76.6985,142.82,142.71,10.09]
[1641694060318,99.7101,142.82,142.71,10.09]
[1641694060917,110.2221,142.82,142.71,10.09]
[1641694062920,109.9621,142.82,142.71,10.09]
[1641694064120,109.4621,142.82,142.71,10.09]
[1641694064322,0.26,142.81,142.71,10.09]
[1641694064622,10.5115,142.8,142.71,10.09]
[1641694064821,24.8508,142.8,142.68,10.09]
[1641694065021,3.26,142.79,142.68,10.09]
[1641694065520,10.5179,142.74,142.68,10.09]
[1641694065720,23.70549195,142.73,142.68,10.09]
[1641694065919,26.96549195,142.73,142.65,10.09]
[1641694066921,37.48269195,142.73,142.65,10.09]
[1641694067721,37.48269195,142.73,142.64,94.7]
[1641694067922,37.48269195,142.73,142.64,103.11]
[1641694070321,37.48269195,142.73,142.64,8.41]
[1641694070723,37.48269195,142.73,142.61,10.5164]
[1641694070921,22.938,142.72,142.6,18.927]
[1641694071123,10.5173,142.7,142.6,18.927]
[1641694071322,28.07589027,142.69,142.6,18.927]
[1641694071523,31.33589027,142.69,142.6,18.927]
[1641694072224,41.59279027,142.69,142.61,10.5161]
[1641694072422,38.59279027,142.69,142.61,10.5161]
[1641694072626,23.189,142.7,142.62,8.41]
[1641694072824,24.8629,142.72,142.62,8.41]
[1641694073022,22.8538,142.74,142.63,1.65345313]
[1641694073223,33.3662,142.74,142.65,10.5135]
[1641694073427,33.3662,142.74,142.64,8.41]
[1641694073624,33.11957023,142.73,142.64,8.41]
[1641694073824,33.37957023,142.73,142.64,8.41]
[1641694074124,33.37957023,142.73,142.6,10.06345313]
[1641694074325,10.5172,142.7,142.61,0.25]
[1641694074625,0.26,142.69,142.6,18.9271]
[1641694074827,31.33961866,142.68,142.6,18.9271]
[1641694075024,0.26,142.67,142.6,18.9271]
[1641694076427,10.7771,142.67,142.6,8.41]
[1641694076627,3.0,142.66,142.56,103.11]
[1641694077028,0.26,142.65,142.56,103.11]
[1641694077228,0.26,142.65,142.56,94.7]
[1641694077430,28.42399414,142.65,142.56,94.7]
[1641694077630,10.5247,142.61,142.56,94.7]
[1641694077831,35.84888717,142.61,142.56,94.7]
[1641694078031,3.26,142.6,142.52,9.64498448]
[1641694078333,3.26,142.6,142.54,8.41]
[1641694078334,0.26,142.6,142.54,8.41]
[1641694078532,0.26,142.6,142.53,1.65345313]
[1641694078730,10.524,142.6,142.52,8.41]
[1641694078931,0.26,142.59,142.52,8.41]
[1641694080033,10.7833,142.59,142.52,8.41]
[1641694080430,3.0,142.58,142.52,8.41]
[1641694080932,0.26,142.57,142.52,8.41]
[1641694081130,48.61,142.65,142.53,1.65345313]
[1641694081332,24.1496,142.65,142.53,10.32345313]
[1641694081531,3.0,142.64,142.54,3.25]
[1641694081734,3.0,142.64,142.55,8.41]
[1641694081935,3.0,142.64,142.55,10.32345313]
[1641694082138,23.18731913,142.63,142.56,10.5199]
[1641694082334,23.18731913,142.63,142.56,18.9299]
[1641694082537,0.26,142.62,142.56,18.9299]
[1641694082735,0.26,142.62,142.56,8.41]
[1641694083838,0.26,142.62,142.57,10.5191]
[1641694084240,0.26,142.62,142.56,8.41]
[1641694084840,10.5188,142.65,142.57,10.5186]
[1641694085044,22.9731,142.67,142.57,8.41]
[1641694085241,253.0522,142.7,142.58,0.26]
[1641694085640,3.0,142.69,142.58,3.26]
[1641694085841,27.28680621,142.68,142.58,13.5182]
[1641694086043,27.28680621,142.68,142.58,10.5182]
[1641694086443,3.26,142.67,142.58,10.5182]
[1641694087844,10.519,142.65,142.58,10.5182]
[1641694088142,30.69178176,142.65,142.58,10.5182]
[1641694088342,0.26,142.64,142.58,10.5182]
[1641694088542,30.69178176,142.65,142.59,8.41]
[1641694088743,0.26,142.64,142.59,8.41]
[1641694088942,0.26,142.64,142.61,10.5159]
[1641694089142,6.06219999,142.63,142.61,10.5159]
[1641694090745,6.06219999,142.63,142.59,18.9271]
[1641694090973,6.06219999,142.63,142.59,8.41]
[1641694091273,6.06219999,142.63,142.56,8.41]
[1641694091274,0.26,142.62,142.56,8.41]
[1641694091672,3.26,142.62,142.56,8.41]
[1641694091874,23.36060909,142.61,142.56,8.41]
[1641694092072,34.14220909,142.61,142.56,8.41]
[1641694092676,23.62060909,142.61,142.56,8.41]
[1641694093074,0.26,142.61,142.56,8.41]
[1641694093577,0.26,142.62,142.56,8.41]
[1641694093976,27.09274999,142.62,142.56,8.41]
[1641694094177,10.5217,142.61,142.56,8.41]
[1641694094378,10.7817,142.61,142.56,8.41]
[1641694095778,3.0,142.6,142.56,8.41]
[1641694095978,10.784,142.59,142.56,8.41]
[1641694096377,6.06219999,142.58,142.56,8.41]
[1641694098076,16.58619999,142.58,142.56,8.41]
[1641694098278,6.06219999,142.58,142.56,8.41]
[1641694099479,6.06219999,142.58,142.5,3.56279463]
[1641694099680,6.06219999,142.58,142.51,8.41]
[1641694099882,6.06219999,142.58,142.51,8.67]
[1641694100282,6.06219999,142.58,142.52,0.25]
[1641694100482,6.06219999,142.58,142.53,8.41]
[1641694100680,16.58609999,142.58,142.53,8.41]
[1641694101284,6.06219999,142.58,142.53,8.41]
[1641694103987,10.5195,142.64,142.55,10.5205]
[1641694104186,113.8132,142.7,142.56,8.41]
[1641694104187,74.2179,142.7,142.56,8.41]
[1641694104387,74.2179,142.7,142.57,8.92]
[1641694104588,74.2179,142.7,142.57,11.92]
[1641694104887,25.69699846,142.69,142.57,11.92]
[1641694105087,25.69699846,142.69,142.58,1.65345313]
[1641694105291,25.69699846,142.69,142.59,8.41]
[1641694105489,25.69699846,142.69,142.63,10.5146]
[1641694105691,25.69699846,142.69,142.64,8.41]
[1641694107890,25.69699846,142.69,142.64,18.9243]
[1641694108088,25.69699846,142.69,142.64,8.41]
[1641694109091,25.69699846,142.69,142.64,18.9242]
[1641694109289,0.26,142.68,142.64,18.9242]
[1641694110892,0.26,142.68,142.64,8.41]
[1641694113996,25.69699846,142.69,142.64,18.9242]
[1641694115597,25.69699846,142.69,142.65,10.5136]
[1641694117300,0.26,142.68,142.65,8.41]
[1641694117699,0.26,142.68,142.61,8.41]
[1641694117902,3.26,142.68,142.59,8.41]
[1641694118606,114.5663,142.68,142.59,8.41]
[1641694119303,116.0217568,142.68,142.56,8.41]
[1641694119601,22.5663,142.67,142.56,8.41]
[1641694119801,29.88945923,142.67,142.56,8.41]
[1641694120002,10.5216,142.62,142.56,8.41]
[1641694120201,25.27179601,142.61,142.56,8.41]
[1641694120402,28.53179601,142.61,142.56,8.41]
[1641694121706,39.05369601,142.61,142.56,8.41]
[1641694122504,46.60869601,142.61,142.5,8.41]
[1641694122705,10.5286,142.59,142.5,8.41]
[1641694122904,31.11179901,142.58,142.5,8.41]
[1641694123104,34.11179901,142.58,142.5,8.41]
[1641694123910,10.5286,142.54,142.5,8.41]
[1641694124111,36.66246973,142.54,142.5,8.41]
[1641694124310,0.26,142.53,142.5,8.41]
[1641694126145,25.6751,142.58,142.5,8.41]
[1641694126341,25.6751,142.58,142.5,10.06345313]
[1641694126544,22.6751,142.58,142.51,3.26]
[1641694126743,22.6751,142.58,142.52,8.41]
[1641694126944,18.7413,142.66,142.52,8.41]
[1641694127244,26.6883533,142.58,142.52,8.41]
[1641694127543,26.9483533,142.58,142.52,8.41]
[1641694127945,26.9483533,142.58,142.48,36.72985313]
[1641694128146,37.4724533,142.58,142.51,10.5234]
[1641694128343,37.4724533,142.58,142.52,10.11]
[1641694128545,37.2124533,142.58,142.52,10.11]
[1641694129147,10.5266,142.55,142.52,10.11]
[1641694129549,3.0,142.54,142.49,10.11]
[1641694129747,29.18904827,142.53,142.49,10.11]
[1641694131148,0.26,142.54,142.49,10.11]
[1641694131551,0.26,142.56,142.49,10.11]
[1641694131750,10.7852,142.56,142.49,10.11]
[1641694132150,32.01895936,142.55,142.49,10.11]
[1641694132551,0.26,142.54,142.49,10.11]
[1641694134451,202.33569066,142.67,142.5,0.25]
[1641694134656,48.0069,142.63,142.51,10.11]
[1641694135267,55.33176513,142.63,142.52,0.25]
[1641694135454,26.89631992,142.59,142.52,10.36]
[1641694135655,29.89631992,142.59,142.52,20.883]
[1641694135853,0.26,142.58,142.52,10.36]
[1641694136054,0.26,142.58,142.52,10.11]
[1641694136655,10.7838,142.58,142.52,10.11]
[1641694137255,30.84719003,142.56,142.52,10.11]
[1641694137458,0.26,142.55,142.52,10.11]
[1641694138561,30.84719003,142.56,142.54,10.5215]
[1641694138759,24.1456,142.59,142.54,10.5215]
[1641694138962,24.1456,142.59,142.54,20.6315]
[1641694138963,0.26,142.58,142.54,20.6315]
[1641694139160,24.1456,142.59,142.54,20.6315]
[1641694139760,24.1456,142.59,142.55,10.5209]
[1641694139959,24.1456,142.59,142.54,10.11]
[1641694140862,23.60648162,142.58,142.54,10.11]
[1641694141966,23.60648162,142.58,142.54,20.6315]
[1641694142164,35.0676,142.66,142.54,10.11]
[1641694142365,77.6343,142.68,142.55,0.25]
[1641694142564,3.0,142.65,142.56,10.11]
[1641694142965,3.0,142.65,142.57,0.51]
[1641694143165,23.77264261,142.65,142.58,10.11]
[1641694143565,3.0,142.64,142.58,20.6288]
[1641694144766,23.77264261,142.65,142.58,20.6288]
[1641694144967,23.1295,142.67,142.58,27.2748]
[1641694145266,134.7833,142.74,142.59,3.51]
[1641694145471,77.553,142.74,142.6,136.45]
[1641694145668,77.553,142.74,142.6,138.42798486]
[1641694145867,77.553,142.74,142.61,5.16345313]
[1641694146067,30.30832954,142.73,142.62,10.11]
[1641694146267,30.30832954,142.73,142.64,35.037]
[1641694146468,30.30832954,142.73,142.65,10.37]
[1641694146866,30.30832954,142.73,142.66,3.0]
[1641694147070,30.30832954,142.73,142.67,10.11]
[1641694147569,3.0,142.72,142.67,10.11]
[1641694147867,3.0,142.72,142.64,10.11]
[1641694148468,0.26,142.71,142.64,10.11]
[1641694148668,0.26,142.72,142.65,3.0]
[1641694148867,0.26,142.72,142.7,10.5098]
[1641694149069,0.26,142.72,142.71,6.06439994]
[1641694150272,0.26,142.72,142.66,10.11]
[1641694150471,0.26,142.72,142.7,10.509]
[1641694151072,0.26,142.76,142.7,10.509]
[1641694151274,49.0179,142.77,142.7,10.509]
[1641694151472,49.0179,142.77,142.69,10.11]
[1641694151673,49.0179,142.77,142.7,10.11]
[1641694151875,78.0991,142.79,142.7,10.36]
[1641694152073,78.0991,142.79,142.71,0.26]
[1641694152279,78.0991,142.79,142.72,10.11]
[1641694152573,78.0991,142.79,142.73,35.0164]
[1641694152773,78.0991,142.79,142.73,38.0164]
[1641694153174,78.0991,142.79,142.73,3.0]
[1641694153675,0.26,142.78,142.76,10.5053]
[1641694153876,0.26,142.78,142.73,3.0]
[1641694154276,0.26,142.79,142.73,3.0]
[1641694154478,3.26,142.79,142.69,10.11]
[1641694154678,37.8812014,142.79,142.69,10.11]
[1641694155076,36.4322,142.79,142.69,10.11]
[1641694155675,37.8812014,142.79,142.69,10.11]
[1641694157277,37.6212014,142.79,142.69,10.11]
[1641694157482,36.1722,142.79,142.69,10.11]
[1641694158681,10.7712,142.78,142.69,10.11]
[1641694158980,10.5112,142.78,142.69,10.11]
[1641694159180,3.0,142.77,142.69,10.11]
[1641694159582,74.9457,142.78,142.69,10.11]
[1641694159787,85.4549,142.78,142.69,10.11]
[1641694160090,85.4549,142.78,142.7,0.25]
[1641694160091,74.9457,142.78,142.7,0.25]
[1641694160387,0.26,142.77,142.71,10.11]
[1641694160788,74.9457,142.78,142.71,10.11]
[1641694161187,42.14563301,142.8,142.71,10.11]
[1641694161787,42.14563301,142.8,142.72,10.5067]
[1641694162087,42.14563301,142.8,142.73,13.11]
[1641694162287,42.14563301,142.8,142.73,13.36]
[1641694162890,0.26,142.79,142.73,13.36]
[1641694163092,10.7673,142.79,142.73,13.36]
[1641694164091,10.7673,142.79,142.73,10.11]
[1641694164490,3.0,142.78,142.73,10.11]
[1641694164691,13.5084,142.78,142.73,10.11]
[1641694164889,0.26,142.77,142.73,10.11]
[1641694165689,36.0,142.76,142.69,10.11]
[1641694165912,0.26,142.75,142.65,10.11]
[1641694166113,102.8998,142.75,142.65,10.11]
[1641694166513,137.948,142.75,142.65,10.11]
[1641694166716,24.06018393,142.74,142.65,10.11]
[1641694166912,0.26,142.73,142.65,10.11]
[1641694167112,13.7752,142.73,142.65,10.11]
[1641694168812,13.5152,142.73,142.65,10.11]
[1641694169016,24.06018393,142.74,142.65,10.11]
[1641694169214,24.06018393,142.74,142.66,0.26]
[1641694169418,24.06018393,142.74,142.67,10.11]
[1641694170015,34.57078393,142.74,142.67,10.11]
[1641694170517,3.0,142.73,142.67,10.11]
[1641694170715,3.26,142.73,142.67,10.11]
[1641694171016,3.26,142.73,142.64,10.11]
[1641694171216,26.0196,142.73,142.64,10.11]
[1641694171815,36.535,142.73,142.64,10.11]
[1641694172017,38.42799216,142.73,142.64,10.11]
[1641694172717,36.535,142.73,142.64,10.11]
[1641694172917,26.0196,142.73,142.64,10.11]
[1641694173119,1.44578575,142.72,142.6,10.11]
[1641694173317,1.44578575,142.72,142.58,94.7]
[1641694173318,71.59578575,142.72,142.58,94.7]
[1641694173518,3.26,142.71,142.58,94.7]
[1641694173718,79.2033,142.7,142.58,94.7]
[1641694173922,0.26,142.69,142.57,10.11]
[1641694174123,10.5234,142.65,142.57,10.11]
[1641694174425,0.26,142.64,142.57,10.11]
[1641694174625,3.26,142.64,142.57,10.11]
[1641694175221,0.26,142.64,142.57,10.11]
[1641694175424,10.5218,142.61,142.57,10.11]
[1641694176122,35.0725,142.63,142.57,10.11]
[1641694176123,47.8841,142.67,142.57,10.11]
[1641694176524,10.5187,142.63,142.57,10.11]
[1641694176724,29.76211578,142.62,142.57,10.11]
[1641694177124,0.26,142.61,142.57,10.11]
[1641694177526,10.5215,142.6,142.57,10.11]
[1641694178227,0.26,142.61,142.57,10.11]
[1641694179928,10.521,142.6,142.57,10.11]
[1641694181730,0.26,142.59,142.57,10.11]
[1641694181933,10.7832,142.59,142.57,10.11]
[1641694182133,10.7832,142.59,142.54,10.11]
[1641694182531,35.0899,142.57,142.51,106.77789583]
[1641694182732,22.85407761,142.56,142.51,104.81]
[1641694182931,26.11407761,142.56,142.51,10.11]
[1641694183132,10.5269,142.54,142.51,10.11]
[1641694183536,0.26,142.53,142.51,10.11]
[1641694183734,35.0919,142.55,142.51,10.11]
[1641694184334,10.5273,142.53,142.51,10.11]
[1641694184534,23.11407761,142.56,142.51,10.11]
[1641694184735,123.9471,142.61,142.51,10.11]
[1641694185136,3.0,142.6,142.51,10.11]
[1641694185540,134.4721,142.61,142.51,10.11]
[1641694185742,27.34316809,142.59,142.51,10.11]
[1641694185946,0.26,142.58,142.51,10.11]
[1641694186140,3.26,142.58,142.51,10.11]
[1641694187240,10.5249,142.55,142.51,10.11]
[1641694187638,3.26,142.58,142.51,10.11]
[1641694188239,10.5232,142.57,142.51,10.11]
[1641694188444,3.26,142.58,142.51,10.11]
[1641694189239,13.7824,142.58,142.51,10.11]
[1641694190639,13.7824,142.58,142.51,20.6334]
[1641694190841,13.7824,142.58,142.51,10.11]
[1641694194368,13.7824,142.58,142.48,10.11]
[1641694194569,15.22818575,142.58,142.48,10.11]
[1641694194969,13.7824,142.58,142.48,10.11]
[1641694195369,13.5224,142.58,142.48,10.11]
[1641694196777,10.5264,142.53,142.48,10.11]
[1641694196972,27.34316809,142.59,142.49,3.51]
[1641694197172,27.34316809,142.59,142.5,10.11]
[1641694197472,27.34316809,142.59,142.58,10.5183]
[1641694197673,27.34316809,142.59,142.58,16.58269994]
[1641694197974,27.34316809,142.59,142.58,6.06439994]
[1641694198173,27.34316809,142.59,142.54,10.11]
[1641694198374,6.32439994,142.58,142.51,10.11]
[1641694198773,3.0,142.57,142.51,10.11]
[1641694198977,10.5251,142.55,142.51,10.11]
[1641694199374,0.26,142.56,142.51,10.11]
[1641694199375,0.26,142.54,142.51,10.11]
[1641694199976,0.26,142.56,142.51,10.11]
[1641694200177,10.5254,142.54,142.51,10.11]
[1641694200375,0.26,142.53,142.51,10.11]
[1641694201076,10.5251,142.55,142.52,3.03219997]
[1641694201275,10.5251,142.55,142.52,6.06439994]
[1641694201480,0.26,142.54,142.52,3.03219997]
[1641694201876,0.26,142.57,142.52,3.03219997]
[1641694202276,10.7832,142.57,142.52,3.03219997]
[1641694202479,0.26,142.57,142.52,3.03219997]
[1641694203076,0.26,142.57,142.51,10.11]
[1641694203577,13.7833,142.57,142.51,10.11]
[1641694203780,13.5233,142.57,142.51,10.11]
[1641694203981,10.5233,142.57,142.51,10.11]
[1641694204977,0.26,142.56,142.51,10.11]
[1641694205179,10.5246,142.55,142.51,10.11]
[1641694206283,0.26,142.57,142.51,10.11]
[1641694206583,84.27949994,142.58,142.51,10.11]
[1641694206981,6.06439994,142.58,142.51,10.11]
[1641694207780,16.58669994,142.58,142.51,10.11]
[1641694208383,0.26,142.57,142.51,10.11]
[1641694208884,10.5254,142.54,142.5,1.96789583]
[1641694209281,3.26,142.53,142.48,1.96789583]
[1641694209482,25.48973838,142.52,142.48,1.96789583]
[1641694209687,28.48973838,142.52,142.48,1.96789583]
[1641694209882,10.5298,142.5,142.48,1.96789583]
[1641694210288,0.26,142.49,142.48,1.96789583]
[1641694210487,0.26,142.49,142.44,21.87254358]
[1641694210488,3.26,142.49,142.44,21.87254358]
[1641694210686,0.26,142.49,142.44,21.87254358]
[1641694210913,25.48973838,142.52,142.44,21.87254358]
[1641694210914,0.26,142.51,142.44,21.87254358]
[1641694211086,10.5316,142.48,142.44,21.87254358]
[1641694211289,10.5316,142.48,142.44,19.90464775]
[1641694211489,0.26,142.47,142.44,19.90464775]
[1641694211889,0.26,142.47,142.43,1.96789583]
[1641694211890,0.79535223,142.44,142.43,1.96789583]
[1641694212090,9.04335223,142.44,142.43,9.583e-05]
[1641694212289,19.58065223,142.44,142.43,9.583e-05]
[1641694212489,22.84065223,142.44,142.39,3.56279463]
[1641694212792,29.03598843,142.43,142.39,3.56279463]
[1641694212988,3.26,142.43,142.39,3.56279463]
[1641694213189,0.26,142.43,142.39,3.56279463]
[1641694213392,35.91415223,142.44,142.39,3.56279463]
[1641694213592,3.0,142.43,142.39,3.56279463]
[1641694213791,3.26,142.43,142.37,10.11]
[1641694213991,8.326,142.43,142.37,10.11]
[1641694214491,10.5371,142.4,142.37,10.11]
[1641694214692,10.5371,142.4,142.34,10.11]
[1641694214893,25.71886712,142.39,142.34,10.11]
[1641694215594,10.54,142.37,142.34,10.11]
[1641694216294,0.79535223,142.44,142.34,11.76345313]